[Event "*** Titled Tuesday 3|2 Blitz"]
[Site "Chess.com"]
[Date "2017.05.02"]
[Round "7"]
[White "rithwik2002"]
[Black "aa175"]
[Result "0-1"]
[WhiteElo "1876"]
[BlackElo "1803"]
[TimeControl "180+2"]
[EndTime "14:34:41 PDT"]
[Termination "aa175 won by checkmate"]

1. e4 {[%clk 0:03:02]} 1... e5 {[%clk 0:03:00.5]} 2. Nf3 {[%clk 0:03:02.2]} 2...
Nc6 {[%clk 0:03:00.8]} 3. Bc4 {[%clk 0:03:03.4]} 3... Nf6 {[%clk 0:03:01.3]} 4.
d3 {[%clk 0:03:01.8]} 4... h6 {[%clk 0:02:56.9]} 5. O-O {[%clk 0:02:53.2]} 5...
Bc5 {[%clk 0:02:54]} 6. c3 {[%clk 0:02:36.8]} 6... O-O {[%clk 0:02:47]} 7. d4
{[%clk 0:02:29.9]} 7... exd4 {[%clk 0:02:47.6]} 8. cxd4 {[%clk 0:02:31.8]} 8...
Bb6 {[%clk 0:02:48.4]} 9. e5 {[%clk 0:02:28.9]} 9... Ne8 {[%clk 0:02:38.4]} 10.
d5 {[%clk 0:02:03.5]} 10... Ne7 {[%clk 0:02:35]} 11. Nc3 {[%clk 0:00:50.6]}
11... d6 {[%clk 0:02:33]} 12. a4 {[%clk 0:00:48.5]} 12... a5 {[%clk 0:02:31.2]}
13. Be3 {[%clk 0:00:44.8]} 13... Bxe3 {[%clk 0:02:20]} 14. fxe3 {[%clk
0:00:46.7]} 14... dxe5 {[%clk 0:02:21.9]} 15. Nxe5 {[%clk 0:00:36.7]} 15... Nd6
{[%clk 0:02:22.5]} 16. Qd3 {[%clk 0:00:31.7]} 16... Bf5 {[%clk 0:02:12.8]} 17.
e4 {[%clk 0:00:23]} 17... Bh7 {[%clk 0:02:10.8]} 18. Bb3 {[%clk 0:00:19.1]}
18... Ng6 {[%clk 0:02:07.4]} 19. Nf3 {[%clk 0:00:14.9]} 19... Ne7 {[%clk
0:01:50.6]} 20. Qe3 {[%clk 0:00:12.1]} 20... Ng6 {[%clk 0:01:34.6]} 21. e5
{[%clk 0:00:09.8]} 21... Re8 {[%clk 0:01:32.4]} 22. e6 {[%clk 0:00:09.7]} 22...
Ne7 {[%clk 0:01:25.1]} 23. Ne5 {[%clk 0:00:06.6]} 23... f6 {[%clk 0:01:19.2]}
24. Nd7 {[%clk 0:00:05.8]} 24... Nef5 {[%clk 0:01:18.4]} 25. Qf4 {[%clk
0:00:04]} 25... Qe7 {[%clk 0:01:14]} 26. g4 {[%clk 0:00:04.3]} 26... Nh4 {[%clk
0:01:02.4]} 27. Qf2 {[%clk 0:00:04.4]} 27... f5 {[%clk 0:00:57.4]} 28. gxf5
{[%clk 0:00:02.7]} 28... Nhxf5 {[%clk 0:00:53.9]} 29. Kh1 {[%clk 0:00:04.1]}
29... Kh8 {[%clk 0:00:39.7]} 30. Rg1 {[%clk 0:00:03.9]} 30... Rad8 {[%clk
0:00:20.2]} 31. Nb5 {[%clk 0:00:04.8]} 31... b6 {[%clk 0:00:14.6]} 32. Nxd6
{[%clk 0:00:05.6]} 32... Nxd6 {[%clk 0:00:15.4]} 33. Rg2 {[%clk 0:00:04.4]}
33... Be4 {[%clk 0:00:15.9]} 34. Rg1 {[%clk 0:00:04.6]} 34... Rg8 {[%clk
0:00:13.2]} 35. Qf4 {[%clk 0:00:04.9]} 35... Bxg2+ {[%clk 0:00:13.6]} 36. Rxg2
{[%clk 0:00:06.8]} 36... Rxd7 {[%clk 0:00:13.8]} 37. exd7 {[%clk 0:00:07.4]}
37... Qxd7 {[%clk 0:00:15.7]} 38. Bc2 {[%clk 0:00:07.4]} 38... Qf7 {[%clk
0:00:11.8]} 39. Qd2 {[%clk 0:00:08.2]} 39... Qf1+ {[%clk 0:00:11]} 40. Rg1
{[%clk 0:00:08.8]} 40... Qf3+ {[%clk 0:00:12]} 41. Rg2 {[%clk 0:00:09.8]} 41...
Rf8 {[%clk 0:00:09]} 42. Bd1 {[%clk 0:00:08.8]} 42... Qf1+ {[%clk 0:00:09.2]}
43. Rg1 {[%clk 0:00:09.9]} 43... Qf6 {[%clk 0:00:09.8]} 44. Qd3 {[%clk
0:00:10.9]} 44... Qf5 {[%clk 0:00:09.2]} 45. Qd2 {[%clk 0:00:11.4]} 45... Qe4+
{[%clk 0:00:09.8]} 46. Rg2 {[%clk 0:00:11]} 46... Rf1# {[%clk 0:00:09.5]} 0-1

[Event "*** Titled Tuesday 3|2 Blitz"]
[Site "Chess.com"]
[Date "2017.05.02"]
[Round "7"]
[White "Drags95"]
[Black "jcibarra"]
[Result "1-0"]
[WhiteElo "2547"]
[BlackElo "2638"]
[TimeControl "180+2"]
[EndTime "14:34:49 PDT"]
[Termination "Drags95 won by resignation"]

1. e4 {[%clk 0:02:55.9]} 1... c5 {[%clk 0:03:00.4]} 2. Nf3 {[%clk 0:02:56.6]}
2... Nf6 {[%clk 0:03:00.9]} 3. Nc3 {[%clk 0:02:56.6]} 3... d5 {[%clk 0:03:01.7]}
4. exd5 {[%clk 0:02:57.3]} 4... Nxd5 {[%clk 0:03:02.7]} 5. Bb5+ {[%clk
0:02:58.8]} 5... Bd7 {[%clk 0:03:03.7]} 6. Qe2 {[%clk 0:02:45.2]} 6... Nb4
{[%clk 0:03:04]} 7. Bxd7+ {[%clk 0:02:25.1]} 7... Qxd7 {[%clk 0:03:04.8]} 8. d3
{[%clk 0:02:25.8]} 8... N8c6 {[%clk 0:02:56.9]} 9. O-O {[%clk 0:02:16.1]} 9...
e6 {[%clk 0:02:43.3]} 10. Be3 {[%clk 0:02:06.3]} 10... Rc8 {[%clk 0:02:37.3]}
11. a3 {[%clk 0:02:05.1]} 11... Nd5 {[%clk 0:02:35.9]} 12. Nxd5 {[%clk
0:02:04.6]} 12... Qxd5 {[%clk 0:02:37.1]} 13. c4 {[%clk 0:02:05.7]} 13... Qh5
{[%clk 0:02:34.4]} 14. Rfd1 {[%clk 0:02:02.3]} 14... Bd6 {[%clk 0:02:33.7]} 15.
h3 {[%clk 0:01:48.8]} 15... O-O {[%clk 0:02:22.1]} 16. d4 {[%clk 0:01:40.9]}
16... cxd4 {[%clk 0:02:20.7]} 17. Nxd4 {[%clk 0:01:42.6]} 17... Qxe2 {[%clk
0:02:19]} 18. Nxe2 {[%clk 0:01:44.5]} 18... Be5 {[%clk 0:02:19.4]} 19. Rab1
{[%clk 0:01:35.6]} 19... Rfd8 {[%clk 0:01:40.5]} 20. b4 {[%clk 0:01:32.8]} 20...
Rxd1+ {[%clk 0:01:18.7]} 21. Rxd1 {[%clk 0:01:34.7]} 21... Bb2 {[%clk
0:01:19.8]} 22. Bc1 {[%clk 0:00:36.2]} 22... Bxc1 {[%clk 0:01:19.2]} 23. Nxc1
{[%clk 0:00:38.1]} 23... Ne5 {[%clk 0:01:08.5]} 24. c5 {[%clk 0:00:39.5]} 24...
g5 {[%clk 0:00:52.5]} 25. Nb3 {[%clk 0:00:40.5]} 25... Kf8 {[%clk 0:00:34.7]}
26. Kf1 {[%clk 0:00:41.7]} 26... Ke7 {[%clk 0:00:35.7]} 27. Ke2 {[%clk
0:00:43.1]} 27... Nc4 {[%clk 0:00:35.1]} 28. a4 {[%clk 0:00:41.5]} 28... b6
{[%clk 0:00:21.9]} 29. Rc1 {[%clk 0:00:37]} 29... Ne5 {[%clk 0:00:16.3]} 30.
cxb6 {[%clk 0:00:25.8]} 30... Rxc1 {[%clk 0:00:17]} 31. b7 {[%clk 0:00:27.4]}
31... Nd7 {[%clk 0:00:05.5]} 32. Nxc1 {[%clk 0:00:28]} 32... Kd6 {[%clk
0:00:07.1]} 33. Kf3 {[%clk 0:00:17.3]} 33... f5 {[%clk 0:00:06.2]} 34. Nb3
{[%clk 0:00:16.2]} 34... Kc7 {[%clk 0:00:06.4]} 35. Nd4 {[%clk 0:00:17.5]} 35...
Nf8 {[%clk 0:00:06.5]} 36. h4 {[%clk 0:00:17.1]} 36... h6 {[%clk 0:00:06.6]} 37.
hxg5 {[%clk 0:00:12]} 37... hxg5 {[%clk 0:00:08.5]} 38. g4 {[%clk 0:00:13.6]}
38... f4 {[%clk 0:00:06.2]} 39. Ke4 {[%clk 0:00:14.7]} 39... Kxb7 {[%clk
0:00:07.8]} 40. Ke5 {[%clk 0:00:16.4]} 40... Ng6+ {[%clk 0:00:07.7]} 41. Kxe6
{[%clk 0:00:16.1]} 41... Nh4 {[%clk 0:00:05.5]} 42. Kf6 {[%clk 0:00:17.6]} 42...
Ng2 {[%clk 0:00:03.3]} 43. Kxg5 {[%clk 0:00:18.1]} 43... Kc7 {[%clk 0:00:05]}
44. Kf6 {[%clk 0:00:19.6]} 44... Ne1 {[%clk 0:00:04.6]} 45. g5 {[%clk
0:00:19.8]} 45... Nf3 {[%clk 0:00:06.1]} 46. g6 {[%clk 0:00:20.3]} 46... Nxd4
{[%clk 0:00:06.9]} 47. g7 {[%clk 0:00:20.7]} 1-0

[Event "*** Titled Tuesday 3|2 Blitz"]
[Site "Chess.com"]
[Date "2017.05.02"]
[Round "7"]
[White "underdogchss"]
[Black "1random"]
[Result "0-1"]
[WhiteElo "2384"]
[BlackElo "2311"]
[TimeControl "180+2"]
[EndTime "14:34:53 PDT"]
[Termination "1random won on time"]

1. e4 {[%clk 0:03:02]} 1... d5 {[%clk 0:02:56.9]} 2. exd5 {[%clk 0:03:02.6]}
2... Nf6 {[%clk 0:02:55.7]} 3. Bb5+ {[%clk 0:02:59.3]} 3... Nbd7 {[%clk
0:02:56.4]} 4. Nc3 {[%clk 0:02:59]} 4... a6 {[%clk 0:02:56.7]} 5. Ba4 {[%clk
0:02:59.2]} 5... b5 {[%clk 0:02:57]} 6. Bb3 {[%clk 0:02:59.5]} 6... Bb7 {[%clk
0:02:58.5]} 7. Qf3 {[%clk 0:02:55.3]} 7... Nb6 {[%clk 0:02:56.8]} 8. Nge2 {[%clk
0:02:55.9]} 8... Nbxd5 {[%clk 0:02:53.1]} 9. O-O {[%clk 0:02:50.9]} 9... c5
{[%clk 0:02:53.4]} 10. Nxd5 {[%clk 0:02:50.4]} 10... Bxd5 {[%clk 0:02:52.4]} 11.
Bxd5 {[%clk 0:02:50.4]} 11... Qxd5 {[%clk 0:02:54.3]} 12. Qxd5 {[%clk
0:02:44.2]} 12... Nxd5 {[%clk 0:02:56.2]} 13. c3 {[%clk 0:02:41.1]} 13... e5
{[%clk 0:02:54]} 14. a4 {[%clk 0:02:38.7]} 14... b4 {[%clk 0:02:53.5]} 15. d4
{[%clk 0:02:29.5]} 15... exd4 {[%clk 0:02:47.4]} 16. cxd4 {[%clk 0:02:29.7]}
16... c4 {[%clk 0:02:48.8]} 17. Re1 {[%clk 0:02:28.2]} 17... Kd7 {[%clk
0:02:47.8]} 18. Nf4 {[%clk 0:02:16]} 18... Nxf4 {[%clk 0:02:48.5]} 19. Bxf4
{[%clk 0:02:17.1]} 19... Bd6 {[%clk 0:02:50.4]} 20. Bxd6 {[%clk 0:01:45.8]}
20... Kxd6 {[%clk 0:02:52.3]} 21. Rac1 {[%clk 0:01:41.7]} 21... Rac8 {[%clk
0:02:49.4]} 22. Re5 {[%clk 0:01:40.1]} 22... f6 {[%clk 0:02:46]} 23. Ra5 {[%clk
0:01:34.5]} 23... Rc6 {[%clk 0:02:45.2]} 24. d5 {[%clk 0:01:35.7]} 24... Rc5
{[%clk 0:02:33.4]} 25. Rxa6+ {[%clk 0:01:36.3]} 25... Kxd5 {[%clk 0:02:34.6]}
26. Rd1+ {[%clk 0:01:37.6]} 26... Ke5 {[%clk 0:02:34.5]} 27. Rb6 {[%clk
0:01:29.8]} 27... c3 {[%clk 0:02:28.4]} 28. bxc3 {[%clk 0:01:07.8]} 28... bxc3
{[%clk 0:02:24.9]} 29. Rc1 {[%clk 0:01:05.4]} 29... c2 {[%clk 0:01:52.5]} 30.
Rb2 {[%clk 0:00:52.2]} 30... Rd8 {[%clk 0:01:46.2]} 31. f4+ {[%clk 0:00:47.5]}
31... Kxf4 {[%clk 0:01:42.1]} 32. Rbxc2 {[%clk 0:00:48.1]} 32... Rxc2 {[%clk
0:01:41.2]} 33. Rxc2 {[%clk 0:00:49.3]} 33... Rd1+ {[%clk 0:01:42.8]} 34. Kf2
{[%clk 0:00:50.7]} 34... Ra1 {[%clk 0:01:44.7]} 35. Rc4+ {[%clk 0:00:47.9]}
35... Kg5 {[%clk 0:01:43.3]} 36. h4+ {[%clk 0:00:46.3]} 36... Kf5 {[%clk
0:01:42.5]} 37. g4+ {[%clk 0:00:40.7]} 37... Kg6 {[%clk 0:01:41.5]} 38. Ke3
{[%clk 0:00:38.8]} 38... h5 {[%clk 0:01:32.2]} 39. Rb4 {[%clk 0:00:19.6]} 39...
Ra3+ {[%clk 0:01:29.7]} 40. Kf4 {[%clk 0:00:19.4]} 40... hxg4 {[%clk 0:01:30.7]}
41. Kxg4 {[%clk 0:00:20.4]} 41... Ra1 {[%clk 0:01:32.3]} 42. h5+ {[%clk
0:00:21.3]} 42... Kh6 {[%clk 0:01:31.7]} 43. Rc4 {[%clk 0:00:13.3]} 43... Rg1+
{[%clk 0:01:31.7]} 44. Kf5 {[%clk 0:00:12.5]} 44... Kxh5 {[%clk 0:01:29.7]} 45.
Rc8 {[%clk 0:00:11.9]} 45... Rf1+ {[%clk 0:01:30.5]} 46. Ke6 {[%clk 0:00:12.3]}
46... Kg4 {[%clk 0:01:29.9]} 47. Rg8 {[%clk 0:00:10.9]} 47... g5 {[%clk
0:01:31]} 48. Rf8 {[%clk 0:00:11.2]} 48... f5 {[%clk 0:01:31.6]} 49. a5 {[%clk
0:00:11.6]} 49... f4 {[%clk 0:01:31]} 50. a6 {[%clk 0:00:11]} 50... Ra1 {[%clk
0:01:32.4]} 51. Ra8 {[%clk 0:00:08.7]} 51... f3 {[%clk 0:01:33.5]} 52. Ke5
{[%clk 0:00:08.6]} 52... Kg3 {[%clk 0:01:34.1]} 53. Ke4 {[%clk 0:00:07.9]} 53...
g4 {[%clk 0:01:35]} 54. a7 {[%clk 0:00:07.3]} 54... Kf2 {[%clk 0:01:33.7]} 55.
Kf4 {[%clk 0:00:06.2]} 55... Ra4+ {[%clk 0:01:33.8]} 56. Kg5 {[%clk 0:00:07.1]}
56... g3 {[%clk 0:01:35.7]} 57. Rb8 {[%clk 0:00:07.2]} 57... Rxa7 {[%clk
0:01:35.9]} 58. Rb2+ {[%clk 0:00:08.6]} 58... Kf1 {[%clk 0:01:36.8]} 59. Kf4
{[%clk 0:00:09.6]} 59... g2 {[%clk 0:01:36.1]} 60. Rb1+ {[%clk 0:00:08.3]} 60...
Kf2 {[%clk 0:01:35.2]} 61. Rb2+ {[%clk 0:00:09]} 61... Kg1 {[%clk 0:01:36.4]}
62. Kxf3 {[%clk 0:00:09.3]} 62... Ra3+ {[%clk 0:01:36.4]} 63. Kg4 {[%clk
0:00:08.5]} 63... Kh1 {[%clk 0:01:35.9]} 0-1

[Event "*** Titled Tuesday 3|2 Blitz"]
[Site "Chess.com"]
[Date "2017.05.02"]
[Round "7"]
[White "Vegan4future"]
[Black "GM_Huschenbeth"]
[Result "0-1"]
[WhiteElo "2290"]
[BlackElo "2369"]
[TimeControl "180+2"]
[EndTime "14:35:21 PDT"]
[Termination "GM_Huschenbeth won by resignation"]

1. e4 {[%clk 0:02:44]} 1... c5 {[%clk 0:03:00.4]} 2. Nf3 {[%clk 0:02:44.1]} 2...
d6 {[%clk 0:03:01.6]} 3. Bb5+ {[%clk 0:02:44.4]} 3... Nd7 {[%clk 0:03:02]} 4.
O-O {[%clk 0:02:44.5]} 4... a6 {[%clk 0:03:02.9]} 5. Bd3 {[%clk 0:02:43.9]} 5...
Ngf6 {[%clk 0:03:03]} 6. Re1 {[%clk 0:02:44.2]} 6... e6 {[%clk 0:03:00.7]} 7. c3
{[%clk 0:02:41.4]} 7... b5 {[%clk 0:03:01.4]} 8. Bc2 {[%clk 0:02:41.4]} 8... c4
{[%clk 0:03:02.3]} 9. d4 {[%clk 0:02:28.2]} 9... cxd3 {[%clk 0:03:02.3]} 10.
Qxd3 {[%clk 0:02:19.5]} 10... Bb7 {[%clk 0:03:00.1]} 11. Bg5 {[%clk 0:02:18.5]}
11... Be7 {[%clk 0:02:58.3]} 12. Nbd2 {[%clk 0:02:18]} 12... O-O {[%clk
0:02:54.1]} 13. Rad1 {[%clk 0:02:18.4]} 13... Qc7 {[%clk 0:02:43.2]} 14. Nb3
{[%clk 0:02:18.8]} 14... h6 {[%clk 0:02:37.7]} 15. Bh4 {[%clk 0:02:16.7]} 15...
Rfd8 {[%clk 0:02:27.4]} 16. Bg3 {[%clk 0:01:44.1]} 16... Ne5 {[%clk 0:02:28]}
17. Nxe5 {[%clk 0:01:42]} 17... dxe5 {[%clk 0:02:29.9]} 18. Qe2 {[%clk
0:01:43.1]} 18... Rdc8 {[%clk 0:01:48.6]} 19. a3 {[%clk 0:01:42.7]} 19... Bc6
{[%clk 0:01:45.4]} 20. Nd4 {[%clk 0:01:39]} 20... Be8 {[%clk 0:01:36.4]} 21. Nf3
{[%clk 0:01:39]} 21... Nd7 {[%clk 0:01:36.8]} 22. Bb3 {[%clk 0:01:24.7]} 22...
Bf6 {[%clk 0:01:35.5]} 23. Rd2 {[%clk 0:01:17.8]} 23... Nc5 {[%clk 0:01:34.5]}
24. Bc2 {[%clk 0:01:18.2]} 24... a5 {[%clk 0:01:35.4]} 25. Red1 {[%clk 0:01:19]}
25... Rab8 {[%clk 0:01:31.3]} 26. Rd6 {[%clk 0:01:08.2]} 26... Nb7 {[%clk
0:01:23.8]} 27. R6d2 {[%clk 0:01:02.7]} 27... Nc5 {[%clk 0:01:10.4]} 28. Rd6
{[%clk 0:01:03.5]} 28... Nb7 {[%clk 0:01:06.8]} 29. R6d2 {[%clk 0:00:56.3]}
29... b4 {[%clk 0:01:06.1]} 30. axb4 {[%clk 0:00:56.8]} 30... axb4 {[%clk
0:01:08]} 31. cxb4 {[%clk 0:00:53]} 31... Nd8 {[%clk 0:01:08.3]} 32. Bb1 {[%clk
0:00:48]} 32... Nc6 {[%clk 0:01:00.9]} 33. b5 {[%clk 0:00:47.9]} 33... Nb4
{[%clk 0:00:52.7]} 34. Rd6 {[%clk 0:00:38.7]} 34... Rxb5 {[%clk 0:00:37.9]} 35.
Qd2 {[%clk 0:00:38.3]} 35... Be7 {[%clk 0:00:31.9]} 36. Bxe5 {[%clk 0:00:31]}
36... Rxe5 {[%clk 0:00:30.7]} 37. Nxe5 {[%clk 0:00:28.1]} 37... Bxd6 {[%clk
0:00:27]} 38. Ng4 {[%clk 0:00:25.6]} 38... Be7 {[%clk 0:00:20.8]} 39. h3 {[%clk
0:00:26.1]} 39... Rd8 {[%clk 0:00:19.7]} 40. Qe2 {[%clk 0:00:25]} 40... Rxd1+
{[%clk 0:00:21.3]} 41. Qxd1 {[%clk 0:00:26.9]} 41... Qc4 {[%clk 0:00:18.8]} 42.
Qd2 {[%clk 0:00:26.8]} 42... Nc6 {[%clk 0:00:16.1]} 43. Ne3 {[%clk 0:00:27.7]}
43... Qd4 {[%clk 0:00:16.9]} 44. Qe2 {[%clk 0:00:28.3]} 44... Ne5 {[%clk
0:00:16]} 45. Kh2 {[%clk 0:00:27.1]} 45... Bc6 {[%clk 0:00:16.6]} 46. f4 {[%clk
0:00:28]} 46... Ng6 {[%clk 0:00:15.9]} 47. f5 {[%clk 0:00:26.4]} 47... Bd6+
{[%clk 0:00:16]} 48. g3 {[%clk 0:00:26.8]} 48... Ne5 {[%clk 0:00:13.7]} 49. fxe6
{[%clk 0:00:27.4]} 49... fxe6 {[%clk 0:00:15.3]} 50. Ng2 {[%clk 0:00:25.4]}
50... Qb6 {[%clk 0:00:08]} 51. Nf4 {[%clk 0:00:26.6]} 51... Qb3 {[%clk 0:00:07]}
52. Qd2 {[%clk 0:00:23.2]} 52... Nf3+ {[%clk 0:00:06.1]} 53. Kg2 {[%clk
0:00:24]} 53... Nxd2 {[%clk 0:00:07.7]} 54. Bd3 {[%clk 0:00:24.7]} 54... Bxe4+
{[%clk 0:00:07.4]} 55. Bxe4 {[%clk 0:00:25.7]} 55... Nxe4 {[%clk 0:00:09.3]} 0-1

[Event "*** Titled Tuesday 3|2 Blitz"]
[Site "Chess.com"]
[Date "2017.05.02"]
[Round "7"]
[White "BjarkeSahl"]
[Black "Gabix_94"]
[Result "1-0"]
[WhiteElo "2183"]
[BlackElo "2439"]
[TimeControl "180+2"]
[EndTime "14:35:33 PDT"]
[Termination "BjarkeSahl won on time"]

1. d4 {[%clk 0:03:01.9]} 1... Nf6 {[%clk 0:03:01]} 2. Bg5 {[%clk 0:03:02.6]}
2... Ne4 {[%clk 0:03:01.9]} 3. Bf4 {[%clk 0:03:03.3]} 3... c5 {[%clk 0:03:03.2]}
4. f3 {[%clk 0:02:57.9]} 4... Qa5+ {[%clk 0:03:03.3]} 5. c3 {[%clk 0:02:58.6]}
5... Nf6 {[%clk 0:03:04.6]} 6. Nd2 {[%clk 0:03:00]} 6... cxd4 {[%clk 0:03:05.4]}
7. Nb3 {[%clk 0:02:58.9]} 7... Qd8 {[%clk 0:03:06.1]} 8. cxd4 {[%clk 0:02:55.9]}
8... d5 {[%clk 0:03:06.2]} 9. Bxb8 {[%clk 0:02:41.8]} 9... Rxb8 {[%clk
0:03:06.5]} 10. e3 {[%clk 0:02:43.4]} 10... e6 {[%clk 0:03:06.2]} 11. Bb5+
{[%clk 0:02:43]} 11... Bd7 {[%clk 0:03:06.7]} 12. Bxd7+ {[%clk 0:02:43.8]} 12...
Qxd7 {[%clk 0:03:08.6]} 13. Ne2 {[%clk 0:02:45]} 13... Bb4+ {[%clk 0:03:10]} 14.
Nc3 {[%clk 0:02:44.3]} 14... O-O {[%clk 0:03:10.6]} 15. O-O {[%clk 0:02:45]}
15... Rfe8 {[%clk 0:03:12.1]} 16. f4 {[%clk 0:02:43.3]} 16... Bxc3 {[%clk
0:03:12.6]} 17. bxc3 {[%clk 0:02:43.4]} 17... Ne4 {[%clk 0:03:13.7]} 18. Qd3
{[%clk 0:02:44.2]} 18... Rbc8 {[%clk 0:03:14]} 19. Rfc1 {[%clk 0:02:45.5]} 19...
Qa4 {[%clk 0:03:11.3]} 20. Nd2 {[%clk 0:02:43.3]} 20... Nd6 {[%clk 0:03:11.8]}
21. e4 {[%clk 0:02:14.5]} 21... Re7 {[%clk 0:03:09.7]} 22. e5 {[%clk 0:02:13]}
22... Nb5 {[%clk 0:03:10.5]} 23. f5 {[%clk 0:01:54.7]} 23... exf5 {[%clk
0:03:05.4]} 24. Qxf5 {[%clk 0:01:54.5]} 24... Rec7 {[%clk 0:02:57.9]} 25. e6
{[%clk 0:01:52.7]} 25... Nxc3 {[%clk 0:02:56.3]} 26. exf7+ {[%clk 0:01:35.4]}
26... Kf8 {[%clk 0:02:57.5]} 27. Rf1 {[%clk 0:01:15.8]} 27... Qxd4+ {[%clk
0:02:55.1]} 28. Kh1 {[%clk 0:01:17.2]} 28... g6 {[%clk 0:02:48.7]} 29. Qg5
{[%clk 0:01:13]} 29... Rxf7 {[%clk 0:02:40.3]} 30. Nf3 {[%clk 0:01:13.2]} 30...
Qf6 {[%clk 0:02:35.9]} 31. Qg4 {[%clk 0:01:07.1]} 31... Rc4 {[%clk 0:02:16.3]}
32. Qh3 {[%clk 0:01:05.3]} 32... Kg7 {[%clk 0:02:14.7]} 33. Nd2 {[%clk
0:00:54.9]} 33... Rf4 {[%clk 0:01:32.5]} 34. Rxf4 {[%clk 0:00:54.2]} 34... Qxf4
{[%clk 0:01:34.4]} 35. Qxc3+ {[%clk 0:00:54.6]} 35... d4 {[%clk 0:01:36.3]} 36.
Qd3 {[%clk 0:00:52.7]} 36... Re7 {[%clk 0:01:37.1]} 37. Nf3 {[%clk 0:00:51.6]}
37... Rd7 {[%clk 0:01:38.2]} 38. Re1 {[%clk 0:00:46.9]} 38... h5 {[%clk
0:01:36.6]} 39. g3 {[%clk 0:00:47.2]} 39... Qf6 {[%clk 0:01:35.8]} 40. Re4
{[%clk 0:00:47.5]} 40... Kh7 {[%clk 0:01:32.4]} 41. Rxd4 {[%clk 0:00:44.9]}
41... Re7 {[%clk 0:01:28.2]} 42. Re4 {[%clk 0:00:42.3]} 42... Qa1+ {[%clk
0:01:27.8]} 43. Kg2 {[%clk 0:00:42.7]} 43... Qxa2+ {[%clk 0:01:29.2]} 44. Kh3
{[%clk 0:00:42.8]} 44... Rg7 {[%clk 0:01:27.3]} 45. Ng5+ {[%clk 0:00:43.5]}
45... Kh6 {[%clk 0:01:27.9]} 46. Qe3 {[%clk 0:00:43.5]} 46... Qb1 {[%clk
0:01:09.6]} 47. Nf7+ {[%clk 0:00:35.1]} 47... Kh7 {[%clk 0:01:10.8]} 48. Qh6+
{[%clk 0:00:36.1]} 48... Kg8 {[%clk 0:01:12]} 49. Qh8+ {[%clk 0:00:37.5]} 49...
Kxf7 {[%clk 0:01:13.2]} 50. Qe8+ {[%clk 0:00:38.9]} 50... Kf6 {[%clk 0:01:14.7]}
51. Qd8+ {[%clk 0:00:25]} 51... Kf5 {[%clk 0:01:13.6]} 52. Qd5+ {[%clk
0:00:25.1]} 52... Kf6 {[%clk 0:01:13.3]} 53. Re6+ {[%clk 0:00:25.5]} 53... Kf7
{[%clk 0:01:14.7]} 54. Re1+ {[%clk 0:00:26.4]} 54... Kf8 {[%clk 0:01:14.7]} 55.
Rxb1 {[%clk 0:00:27.7]} 55... Re7 {[%clk 0:01:16.3]} 56. Rf1+ {[%clk 0:00:27.9]}
56... Kg7 {[%clk 0:01:18.2]} 57. Qd4+ {[%clk 0:00:27.8]} 1-0